bitfinex-derivatives/quotes_ETHF0:USTF0_20250627
["timestamp","ask_amount","ask_price","bid_price","bid_amount"]
[1751021898685,0.81704,2447.0,2446.9,25.89805]
[1751021898885,2.17464,2447.0,2446.9,25.89805]
[1751021899075,1.3576,2447.0,2446.9,25.89805]
[1751021900086,2.17464,2447.0,2446.9,25.89805]
[1751021902087,1.3576,2447.0,2446.9,25.89805]
[1751021902584,0.81707,2446.9,2446.8,6.537]
[1751021902788,0.81707,2446.9,2446.8,31.603]
[1751021903189,0.81707,2446.9,2446.8,32.42011]
[1751021903487,0.81707,2446.9,2446.8,31.603]
[1751021905289,0.81711,2446.8,2446.7,0.81714]
[1751021905486,1.50671,2446.8,2446.7,32.40214]
[1751021907189,1.50671,2446.8,2446.7,31.585]
[1751021907390,1.50671,2446.8,2446.7,32.40214]
[1751021907985,1.50671,2446.8,2446.7,0.81714]
[1751021908190,1.50671,2446.8,2446.7,32.38914]
[1751021910188,1.50671,2446.8,2446.7,31.572]
[1751021911392,1.50671,2446.8,2446.6,1.50506]
[1751021911584,1.50671,2446.8,2446.7,31.556]
[1751021911785,1.50671,2446.8,2446.7,0.81714]
[1751021911980,1.50671,2446.8,2446.7,32.37314]
[1751021912186,1.50671,2446.8,2446.7,7.35414]
[1751021912389,1.50671,2446.8,2446.6,1.50505]
[1751021912689,1.50671,2446.8,2446.7,31.553]
[1751021912889,1.50671,2446.8,2446.7,32.37014]
[1751021913097,1.50671,2446.8,2446.7,0.81714]
[1751021913297,1.50671,2446.8,2446.7,32.36714]
[1751021913492,0.6896,2446.8,2446.7,0.81714]
[1751021913795,1.50671,2446.8,2446.7,32.36514]
[1751021914896,1.50671,2446.8,2446.7,0.81714]
[1751021915097,0.6896,2446.8,2446.7,32.36014]
[1751021916900,1.50671,2446.8,2446.7,32.36014]
[1751021917700,1.50671,2446.8,2446.7,0.81714]
[1751021917897,1.50671,2446.8,2446.7,32.35214]
[1751021918198,1.50671,2446.8,2446.7,0.81714]
[1751021918399,1.50671,2446.8,2446.7,32.34814]
[1751021918900,0.6896,2446.8,2446.7,32.34814]
[1751021919399,0.6896,2446.8,2446.7,0.81714]
[1751021919598,0.6896,2446.8,2446.7,32.34714]
[1751021920601,5.38246,2447.0,2446.8,0.81709]
[1751021920797,0.81707,2446.9,2446.8,0.81709]
[1751021920990,6.09507,2447.0,2446.8,25.79909]
[1751021921196,3.9204,2447.0,2446.9,3.75642255]
[1751021921401,3.2078,2447.0,2446.9,4.48052255]
[1751021923802,4.02484,2447.0,2446.9,1.54117]
[1751021924194,3.2078,2447.0,2446.9,1.54117]
[1751021924395,4.02484,2447.0,2446.9,0.81707]
[1751021924600,6.12234,2447.0,2446.9,0.81707]
[1751021925203,6.12234,2447.0,2446.9,25.79307]
[1751021925405,6.12234,2447.0,2446.9,0.81707]
[1751021925605,6.12234,2447.0,2446.9,25.79107]
[1751021926004,5.3053,2447.0,2446.9,25.79107]
[1751021927206,6.12234,2447.0,2446.9,25.79107]
[1751021927606,5.3053,2447.0,2446.9,25.79107]
[1751021929204,6.12234,2447.0,2446.9,25.79107]
[1751021930311,6.12234,2447.0,2446.9,0.81707]
[1751021930609,6.12234,2447.0,2446.9,25.77107]
[1751021932119,6.12234,2447.0,2446.9,0.81707]
[1751021932417,6.12234,2447.0,2446.9,25.76507]
[1751021933119,6.12234,2447.0,2446.9,0.81707]
[1751021933308,6.12234,2447.0,2446.9,25.76107]
[1751021934719,2.91454,2447.0,2446.9,25.76107]
[1751021937216,2.91454,2447.0,2446.9,0.81707]
[1751021937514,2.91454,2447.0,2446.9,25.74707]
[1751021938322,2.91454,2447.0,2446.9,0.81707]
[1751021938514,2.0975,2447.0,2446.9,25.74707]
[1751021938921,2.91454,2447.0,2446.9,25.74707]
[1751021939218,2.0975,2447.0,2446.9,25.74707]
[1751021939420,2.91454,2447.0,2446.9,25.74707]
[1751021939613,2.0975,2447.0,2446.9,25.74707]
[1751021940221,2.91454,2447.0,2446.9,25.74707]
[1751021945925,2.0975,2447.0,2446.9,25.74707]
[1751021946121,2.91454,2447.0,2446.9,25.74707]
[1751021946312,2.0975,2447.0,2446.9,25.74707]
[1751021947424,2.91454,2447.0,2446.9,25.74707]
[1751021949317,2.0975,2447.0,2446.9,25.74707]
[1751021949824,2.91454,2447.0,2446.9,25.74707]
[1751021950521,2.0975,2447.0,2446.9,25.74707]
[1751021952429,2.91454,2447.0,2446.9,25.74707]
[1751021952929,2.0975,2447.0,2446.9,25.74707]
[1751021953729,2.0975,2447.0,2446.8,6.469]
[1751021953931,2.0975,2447.0,2446.9,25.69407]
[1751021953932,2.91454,2447.0,2446.9,25.69407]
[1751021954128,2.91454,2447.0,2446.9,0.81707]
[1751021954428,2.91454,2447.0,2446.9,25.69307]
[1751021954728,2.0975,2447.0,2446.9,25.69307]
[1751021954924,2.91454,2447.0,2446.9,25.69307]
[1751021955126,2.91454,2447.0,2446.9,0.81707]
[1751021955326,2.91454,2447.0,2446.9,25.69307]
[1751021955832,2.0975,2447.0,2446.9,25.69307]
[1751021956740,2.91454,2447.0,2446.9,25.69307]
[1751021957533,2.91454,2447.0,2446.9,0.81707]
[1751021957736,2.91454,2447.0,2446.9,25.68607]
[1751021958635,2.91454,2447.0,2446.9,0.81707]
[1751021958830,2.91454,2447.0,2446.9,25.68207]
[1751021961339,2.0975,2447.0,2446.9,25.68207]
[1751021961636,2.0975,2447.0,2446.9,0.81707]
[1751021961825,2.91454,2447.0,2446.9,25.67807]
[1751021963937,2.91454,2447.0,2446.9,0.81707]
[1751021964133,2.0975,2447.0,2446.9,25.67707]
[1751021964437,0.7227,2447.0,2446.9,25.67707]
[1751021965238,0.7227,2447.0,2446.9,0.81707]
[1751021965431,1.53974,2447.0,2446.9,25.67707]
[1751021966443,0.7227,2447.0,2446.9,25.67707]
[1751021966739,0.7227,2447.0,2446.9,0.81707]
[1751021967039,0.7227,2447.0,2446.9,25.67707]
[1751021967429,1.53974,2447.0,2446.9,25.67707]
[1751021968440,1.53974,2447.0,2446.9,0.81707]
[1751021968642,1.53974,2447.0,2446.9,25.67707]
[1751021968944,1.53974,2447.0,2446.9,24.86]
[1751021969141,2.91704,2447.0,2446.9,24.86]
[1751021969343,2.91704,2447.0,2446.9,25.67707]
[1751021970846,3.2078,2447.1,2447.0,0.81704]
[1751021971449,4.25967727,2447.1,2447.0,0.81704]
[1751021972344,1.05187727,2447.1,2447.0,2.87360684]
[1751021972550,1.05187727,2447.1,2447.0,0.81704]
[1751021972851,0.81707,2447.0,2446.8,25.6771]
[1751021973050,1.05187727,2446.9,2446.8,25.6771]
[1751021973348,1.86894727,2446.9,2446.8,0.8171]
[1751021973550,3.19654727,2446.9,2446.8,25.6771]
[1751021973745,2.37947727,2446.9,2446.8,25.6771]
[1751021976852,3.19654727,2446.9,2446.8,25.6771]
[1751021977751,2.37947727,2446.9,2446.8,0.8171]
[1751021979658,3.19654727,2446.9,2446.8,0.8171]
[1751021980058,2.37947727,2446.9,2446.8,0.8171]
[1751021980753,3.19654727,2446.9,2446.8,0.8171]
[1751021981253,3.19654727,2446.9,2446.8,25.6771]
[1751021982052,2.37947727,2446.9,2446.8,25.6771]
[1751021982245,3.19654727,2446.9,2446.8,25.6771]
[1751021982652,2.37947727,2446.9,2446.8,25.6771]
[1751021982854,3.19654727,2446.9,2446.8,25.6771]
[1751021984055,2.37947727,2446.9,2446.8,25.6771]
[1751021984457,3.19654727,2446.9,2446.8,25.6771]
[1751021984954,2.37947727,2446.9,2446.8,25.6771]
[1751021987361,3.19654727,2446.9,2446.8,25.6771]
[1751021987653,2.37947727,2446.9,2446.8,25.6771]
[1751021988858,3.19654727,2446.9,2446.8,25.6771]
[1751021989257,2.37947727,2446.9,2446.8,25.6771]
[1751021990161,3.19654727,2446.9,2446.8,25.6771]
[1751021992462,3.19654727,2446.9,2446.8,0.8171]
[1751021992666,3.19654727,2446.9,2446.8,25.6761]
[1751021993165,3.19654727,2446.9,2446.8,0.8171]
[1751021993465,3.19654727,2446.9,2446.8,25.6761]
[1751021994270,5.25425179,2446.9,2446.8,25.6761]
[1751021995174,8.46205179,2446.9,2446.8,25.6761]
[1751021996173,0.81716,2446.7,2446.6,6.397]
[1751021996365,0.81719,2446.6,2446.5,24.858]
[1751021996566,2.89669,2446.6,2446.5,24.858]
[1751021996766,2.0795,2446.6,2446.5,25.67521]
[1751021996966,3.13076264,2446.6,2446.5,25.67521]
[1751021997466,1.05126264,2446.6,2446.5,25.67521]
[1751021998269,1.05126264,2446.6,2446.5,27.73291452]
[1751021998475,3.2078,2446.9,2446.7,0.81714]
[1751021998476,4.6952,2446.9,2446.7,0.81714]
[1751021998674,1.05080125,2446.8,2446.7,0.81714]
[1751021999176,1.05080125,2446.8,2446.7,2.87484452]
[1751022000268,1.05080125,2446.8,2446.7,0.81714]
[1751022000473,1.86793125,2446.8,2446.4,0.7197]
[1751022000673,2.44430125,2446.7,2446.6,25.67516]
[1751022001674,3.26144125,2446.7,2446.6,25.67516]
[1751022002577,3.26144125,2446.7,2446.6,0.81716]
[1751022002777,3.26144125,2446.7,2446.6,32.07216]
[1751022003278,3.26144125,2446.7,2446.6,0.81716]
[1751022003479,2.44430125,2446.7,2446.6,25.67516]
[1751022005881,2.44430125,2446.7,2446.6,25.67416]
[1751022007076,1.3935,2446.7,2446.6,25.67416]
[1751022007273,2.44056809,2446.7,2446.6,25.67416]
[1751022009482,1.04706809,2446.7,2446.6,25.67416]
[1751022010480,3.2078,2446.9,2446.8,0.81711]
[1751022010781,1.04724295,2446.9,2446.8,27.79527846]
[1751022010985,1.3415,2447.4,2447.3,0.81694]
[1751022011173,2.6563,2447.4,2447.2,0.81695]
[1751022011379,2.93927846,2447.3,2447.1,0.81699]
[1751022011682,2.1318,2447.2,2447.0,25.67302]
[1751022011882,5.07108846,2447.1,2447.0,25.67302]
[1751022012184,5.07108846,2447.1,2447.0,24.856]
[1751022012373,5.07108846,2447.1,2447.0,25.67304]
[1751022013483,1.3148,2447.1,2447.0,25.67304]
[1751022014187,3.75623846,2447.3,2447.2,0.81697]
[1751022014387,0.81696,2447.3,2447.2,0.81697]
[1751022014789,1.3594,2447.3,2447.2,0.81697]
[1751022015791,1.3415,2447.4,2447.3,0.81694]
[1751022015992,4.02465,2447.6,2447.5,0.81687]
[1751022016191,6.11865,2447.6,2447.5,0.81687]
[1751022016487,9.05792846,2447.6,2447.5,0.81687]
[1751022019189,8.24107846,2447.6,2447.2,24.854]
[1751022019392,0.81689,2447.5,2447.4,0.81689]
[1751022019791,0.81692,2447.4,2447.3,0.81692]
[1751022021096,6.83007846,2447.6,2447.2,24.854]
[1751022021391,7.64693846,2447.6,2447.5,0.81687]
[1751022021882,0.8169,2447.5,2447.4,0.81689]
[1751022022594,1.85624124,2447.5,2447.4,0.81689]
[1751022022794,1.03934124,2447.5,2447.4,0.81689]
[1751022022995,0.81691,2447.4,2447.3,3.2078]
[1751022023199,0.81697,2447.3,2447.2,7.20996]
[1751022023399,4.48294846,2447.3,2447.2,7.20996]
[1751022024097,5.52218333,2447.3,2447.2,7.20996]
[1751022024497,1.76593487,2447.3,2447.2,7.20996]
[1751022024797,2.58287487,2447.3,2447.2,7.20996]
[1751022025399,1.76593487,2447.3,2447.2,7.20996]
[1751022027000,2.58287487,2447.3,2447.2,7.20996]
[1751022027391,1.76593487,2447.3,2447.2,7.20996]
[1751022029193,4.02466,2447.6,2447.5,0.81687]
[1751022029394,5.06383313,2447.6,2447.5,0.81687]
[1751022029798,5.06383313,2447.6,2447.4,0.81688]
[1751022030000,1.03917313,2447.5,2447.4,0.81688]
[1751022030399,1.03917313,2447.5,2447.4,1.54068]
[1751022031093,1.03917313,2447.5,2447.4,26.38768]
[1751022031293,0.81683,2447.7,2447.5,0.81685]
[1751022031493,1.03924286,2447.6,2447.5,0.81685]
[1751022031903,1.85608286,2447.6,2447.5,0.81685]
[1751022032402,1.85608286,2447.6,2447.4,25.5708]
[1751022032403,0.81687,2447.5,2447.4,1.54069]
[1751022032601,0.81687,2447.5,2447.4,32.78069]
[1751022033001,0.81686,2447.6,2447.5,0.81686]
[1751022033495,1.85606481,2447.6,2447.5,0.81686]
[1751022034104,1.03920481,2447.6,2447.5,0.81686]
[1751022034402,1.85604481,2447.6,2447.5,0.81686]
[1751022034602,1.03920481,2447.6,2447.5,0.81686]
[1751022035498,1.85604481,2447.6,2447.5,0.81686]
[1751022036204,1.03920481,2447.6,2447.5,0.81686]
[1751022036702,1.03920481,2447.6,2447.5,3.75613846]
[1751022038000,4.82961706,2448.6,2448.3,0.81661]
[1751022038200,3.25699624,2448.5,2448.4,0.81657]
[1751022038403,3.25699624,2448.6,2448.5,0.81654]
[1751022038705,4.07351624,2448.6,2448.4,1.53246]
[1751022038900,1.349,2448.6,2448.5,31.235]
[1751022039204,1.349,2448.6,2448.5,32.05154]
[1751022043005,1.349,2448.6,2448.5,0.81654]
[1751022043203,1.349,2448.6,2448.5,32.04854]
[1751022043704,0.7014,2448.7,2448.6,0.81651]
[1751022043905,0.7014,2448.7,2448.6,3.75578846]
[1751022044998,0.7014,2448.7,2448.6,34.98078846]
[1751022045404,1.3985,2448.9,2448.6,34.98078846]
[1751022045405,1.3985,2448.9,2448.8,0.81644]
[1751022052512,3.8682,2449.2,2449.1,0.81634]
[1751022053214,5.3216,2449.2,2449.1,0.81634]
[1751022053608,8.26087846,2449.2,2448.7,0.7004]
[1751022053812,0.81646,2448.8,2448.7,31.217]
[1751022054110,0.81646,2448.8,2448.7,6.386]
[1751022054414,2.1548,2448.8,2448.6,0.81651]
[1751022054611,1.5341,2448.7,2448.6,0.81651]
[1751022054811,2.9875,2448.7,2448.6,0.81651]
[1751022055411,2.9875,2448.7,2448.5,3.2078]
[1751022055609,2.15211,2448.6,2448.5,35.24133]
[1751022056117,1.3356,2448.6,2448.5,35.24133]
[1751022056515,1.3356,2448.6,2448.5,38.18060846]
[1751022056817,0.7176,2448.7,2448.6,0.81651]
[1751022057013,0.7176,2448.7,2448.6,32.03351]
[1751022057213,0.7014,2448.8,2448.7,0.81647]
[1751022057409,0.7014,2448.8,2448.7,3.75574846]
[1751022061611,3.2078,2449.5,2448.7,7.93927846]
[1751022061819,0.81627,2449.3,2449.2,0.81629]
[1751022062008,0.81631,2449.2,2449.1,31.216]
[1751022062214,2.87311,2449.2,2449.1,31.216]
[1751022062415,2.87311,2449.2,2449.1,25.64634]
[1751022062616,2.0568,2449.2,2449.1,25.64634]
[1751022062923,2.87311,2449.2,2449.1,25.64634]
[1751022063423,0.81635,2449.1,2448.7,3.2078]
[1751022063724,0.6853,2449.0,2448.9,0.81641]
[1751022064126,0.81641,2448.9,2448.8,32.03644]
[1751022064523,2.27191,2448.9,2448.8,31.22]
[1751022064720,0.81644,2448.8,2448.7,0.81646]
[1751022065021,2.99004,2448.8,2448.7,25.64946]
[1751022065421,0.81647,2448.7,2448.6,0.81648]
[1751022065621,2.27197,2448.7,2448.6,0.81648]
[1751022065822,1.4555,2448.7,2448.6,0.81648]
[1751022066020,2.27197,2448.7,2448.6,0.81648]
[1751022067318,1.4555,2448.7,2448.6,0.81648]
[1751022067818,2.27197,2448.7,2448.6,0.81648]
[1751022068320,3.29866709,2448.7,2448.6,0.81648]
[1751022069426,3.29866709,2448.7,2448.6,25.64848]
[1751022070828,2.48219709,2448.7,2448.6,25.64848]
[1751022075920,1.02669709,2448.7,2448.6,25.64848]
[1751022076817,1.02669709,2448.7,2448.6,0.81648]
[1751022077023,1.02669709,2448.7,2448.6,25.64548]
[1751022077218,2.36199709,2448.7,2448.6,25.64548]
[1751022078823,3.17846709,2448.7,2448.6,25.64548]
[1751022079226,3.17846709,2448.7,2448.6,0.81648]
[1751022079429,2.36199709,2448.7,2448.4,52.2148]
[1751022079729,0.81654,2448.5,2448.4,28.0368]
[1751022079919,1.84323709,2448.5,2448.4,28.0368]
[1751022080121,3.93983709,2448.5,2448.4,28.0368]
[1751022081327,1.02669709,2448.5,2448.4,31.79264846]
[1751022081533,0.7181,2448.8,2448.7,0.81647]
[1751022081735,1.7473217,2448.8,2448.7,3.75574846]
[1751022081926,3.1440217,2448.8,2448.7,0.81647]
[1751022082529,3.9604617,2448.8,2448.7,0.81647]
[1751022084743,0.81648,2448.7,2448.6,0.81648]
[1751022085036,0.81651,2448.6,2448.5,4.44500846]
[1751022085236,1.8457317,2448.6,2448.5,4.44500846]
[1751022085433,1.0292217,2448.6,2448.4,3.2078]
[1751022085630,1.0292217,2448.6,2448.5,0.81654]
[1751022086226,0.81653,2448.6,2448.5,0.81654]
[1751022086432,1.8457517,2448.6,2448.5,0.81654]
[1751022086935,0.81654,2448.5,2448.4,35.23835]
[1751022087133,1.8457617,2448.5,2448.4,35.23835]
[1751022087438,1.0292217,2448.5,2448.4,35.23835]
[1751022089632,1.02910383,2448.5,2448.4,35.23837]
[1751022090335,1.84564383,2448.5,2448.4,35.23837]
[1751022091041,1.02910383,2448.5,2448.4,4.02437]
[1751022091239,1.02910383,2448.5,2448.4,28.85437]
[1751022092235,1.02910383,2448.5,2448.4,4.02437]
[1751022092541,1.02910383,2448.5,2448.4,28.85437]
[1751022098845,1.84564383,2448.5,2448.4,28.85437]
[1751022099051,2.55404383,2448.5,2448.4,28.85437]
[1751022100947,1.73750383,2448.5,2448.4,28.85437]
[1751022101151,1.02910383,2448.5,2448.4,28.85437]
[1751022103250,1.02910383,2448.5,2448.4,30.22257]
[1751022104646,1.02910383,2448.5,2448.4,28.85437]
[1751022109850,5.3233,2449.2,2449.0,0.81636]
[1751022110151,5.3233,2449.2,2449.0,24.828]
[1751022110547,5.3233,2449.2,2449.1,0.81634]
[1751022110747,5.3233,2449.2,2449.1,3.75561846]
[1751022111749,3.2078,2449.2,2449.1,3.75561846]
[1751022114153,0.6733,2449.3,2449.2,0.81631]
[1751022114356,0.6804,2449.4,2449.3,0.81627]
[1751022115054,2.0334,2449.4,2449.3,0.81627]
[1751022115347,2.84966,2449.4,2449.2,24.826]
[1751022115554,2.16927,2449.3,2449.2,25.64229]
[1751022116656,1.353,2449.3,2449.2,25.64229]
[1751022117553,2.16927,2449.3,2449.2,25.64229]
[1751022119657,2.16927,2449.3,2449.2,25.64029]
[1751022120055,2.16927,2449.3,2449.2,24.824]
[1751022120256,0.81631,2449.2,2449.1,25.63933]
[1751022120558,2.21931,2449.2,2449.1,24.823]
[1751022120743,0.8164,2449.0,2448.9,7.19939]
[1751022120949,2.7883,2449.1,2449.0,0.81637]
[1751022121251,3.60464,2449.1,2449.0,0.81637]
[1751022123051,2.7883,2449.1,2449.0,0.81637]
[1751022123251,3.60465,2449.1,2449.0,0.81637]
[1751022123556,0.81638,2449.0,2448.9,34.96167846]
[1751022123745,2.19808,2449.0,2448.9,34.96167846]
[1751022124652,0.81643,2448.9,2448.7,3.2078]
[1751022124959,1.3817,2448.9,2448.8,24.821]
[1751022125354,2.19814,2448.9,2448.8,0.81645]
[1751022125558,0.81645,2448.8,2448.7,35.22826]
[1751022125854,2.24345,2448.8,2448.7,4.02426]
[1751022126056,2.24345,2448.8,2448.7,28.84526]
[1751022126459,0.81648,2448.7,2448.6,7.1995]
[1751022126659,2.24348,2448.7,2448.6,32.0205]
[1751022126853,1.427,2448.7,2448.6,32.0205]
[1751022127056,1.427,2448.7,2448.6,34.95977846]
[1751022127859,1.427,2448.7,2448.6,3.75577846]
[1751022128062,1.427,2448.7,2448.6,34.95977846]
[1751022128959,1.427,2448.7,2448.6,3.75577846]
[1751022129160,1.427,2448.7,2448.6,34.95977846]
[1751022129360,1.427,2448.7,2448.6,0.8165]
[1751022129561,1.427,2448.7,2448.6,34.95977846]
[1751022130161,2.24348,2448.7,2448.6,34.95977846]
[1751022130360,2.24348,2448.7,2448.6,3.75577846]
[1751022130663,2.24348,2448.7,2448.6,34.14227846]
[1751022130853,2.24348,2448.7,2448.6,10.13878846]
[1751022131055,0.81655,2448.5,2448.4,4.02438]
[1751022131362,2.88981,2448.6,2448.5,0.81655]
[1751022132260,2.0733,2448.6,2448.5,0.81655]
[1751022132464,2.0733,2448.6,2448.4,6.96363846]
[1751022132465,2.88981,2448.6,2448.4,6.96363846]
[1751022132666,0.81655,2448.5,2448.4,3.2078]
[1751022132858,2.20925,2448.5,2448.4,4.02438]
[1751022133262,1.3927,2448.5,2448.4,4.02438]
[1751022133461,2.20925,2448.5,2448.4,4.02438]
[1751022134168,1.3927,2448.5,2448.4,4.02438]
[1751022134369,2.20925,2448.5,2448.4,3.2078]
[1751022134668,2.20925,2448.5,2448.4,4.02438]
[1751022135558,1.3927,2448.5,2448.4,4.02438]
[1751022136165,0.6806,2448.6,2448.5,0.81655]
[1751022136364,0.6806,2448.6,2448.5,3.75582846]
[1751022137072,1.49711,2448.6,2448.5,3.75582846]
[1751022137259,2.0563,2448.6,2448.5,3.75582846]
[1751022138368,2.87281,2448.6,2448.5,3.75582846]
[1751022138874,2.0563,2448.6,2448.5,3.75582846]
[1751022139170,2.87281,2448.6,2448.5,3.75582846]
[1751022139372,0.81655,2448.5,2448.4,28.0308]
[1751022139561,2.88635,2448.5,2448.4,28.0308]
[1751022140974,0.81658,2448.4,2448.3,34.14527846]
[1751022141162,2.18778,2448.4,2448.3,34.96188846]
[1751022141364,2.18778,2448.4,2448.3,28.57988846]
[1751022141575,1.3712,2448.4,2448.3,28.57988846]
[1751022141774,0.7022,2448.5,2448.4,0.81658]
[1751022142475,1.72487701,2448.5,2448.4,0.81658]
[1751022142664,2.54142701,2448.5,2448.4,0.81658]
[1751022143074,1.72487701,2448.5,2448.4,0.81658]
[1751022143275,2.54142701,2448.5,2448.4,0.81658]
[1751022143775,1.72487701,2448.5,2448.4,0.81658]
[1751022144179,1.72487701,2448.5,2448.4,1.53148]
[1751022144376,1.02267701,2448.5,2448.4,1.53148]
[1751022144680,0.81652,2448.6,2448.5,0.81652]
[1751022144885,1.83856709,2448.6,2448.5,0.81652]
[1751022147882,1.02204709,2448.6,2448.5,0.81652]
[1751022148283,1.02204709,2448.6,2448.5,3.75579846]
[1751022148482,1.83855709,2448.6,2448.5,3.75579846]
[1751022150179,0.81655,2448.5,2448.4,0.7149]
[1751022150481,1.47405,2448.5,2448.4,0.81656]
[1751022150978,0.81658,2448.4,2448.3,29.28246846]
[1751022151174,0.81658,2448.4,2448.3,28.57986846]
[1751022151376,1.47406,2448.5,2448.4,0.81658]
[1751022157188,0.6575,2448.5,2448.4,0.81658]
[1751022157481,1.47405,2448.5,2448.4,0.81658]
[1751022157682,2.80205,2448.5,2448.4,0.81658]
[1751022158687,1.9855,2448.5,2448.4,0.81658]
[1751022158888,0.81658,2448.4,2448.3,34.96086846]
[1751022159184,0.81658,2448.4,2448.3,34.14427846]
[1751022159385,2.13418,2448.4,2448.3,34.14427846]
[1751022159586,2.81708,2448.4,2448.3,34.14427846]
[1751022159789,0.81665,2448.2,2448.1,3.2078]
[1751022159985,0.81675,2447.9,2447.8,6.47651659]
[1751022160189,6.14707846,2448.2,2447.5,4.08589574]
[1751022160190,0.81681,2447.7,2447.6,3.26871659]
[1751022160382,0.81685,2447.6,2447.5,4.02466]
[1751022160686,0.8169,2447.5,2447.3,0.81692]
[1751022160886,2.8013,2447.5,2447.3,0.81692]
[1751022161082,2.8013,2447.5,2447.3,0.81693]
[1751022161284,1.9844,2447.5,2447.4,0.81691]
[1751022161487,2.80128,2447.5,2447.4,0.81691]
[1751022161686,1.9844,2447.5,2447.4,0.81691]
[1751022162685,2.8013,2447.5,2447.3,3.75620846]
[1751022163184,2.8013,2447.5,2447.4,0.81691]
[1751022163483,1.9844,2447.5,2447.4,0.81691]
[1751022166189,1.49968,2447.8,2447.6,0.81682]
[1751022166392,0.6829,2447.8,2447.7,2.93927846]
[1751022166584,2.21508,2447.8,2447.7,2.93927846]
[1751022166784,3.67028,2447.8,2447.7,3.75608846]
[1751022167484,3.67028,2447.8,2447.7,2.93927846]
[1751022168090,0.81681,2447.7,2447.6,0.81682]
[1751022168284,1.3854,2447.7,2447.6,0.81682]
[1751022168890,2.20221,2447.7,2447.6,0.81682]
[1751022169592,0.8169,2447.5,2447.3,0.81692]
[1751022169793,2.0499,2447.4,2447.3,0.81692]
[1751022170392,2.86681,2447.4,2447.3,0.81692]
[1751022170893,2.86681,2447.4,2447.2,10.40676]
[1751022171291,2.86681,2447.4,2447.2,9.5898]
[1751022171489,2.86681,2447.4,2447.3,0.81695]
[1751022171900,2.86683,2447.4,2447.2,9.5898]
[1751022172289,2.86683,2447.4,2447.3,0.81695]
[1751022172698,0.81695,2447.3,2447.2,3.2078]
[1751022172898,1.4531,2447.3,2447.2,4.02478]
[1751022174287,0.6829,2447.8,2447.2,8.2078]
[1751022174493,0.7125,2447.8,2447.7,3.75608846]
[1751022174688,3.2078,2448.2,2447.8,2.04195]
[1751022174902,3.2078,2448.2,2448.1,3.75595846]
[1751022175201,4.2261397,2448.2,2448.1,3.75595846]
[1751022176298,4.2261397,2448.2,2448.1,0.81668]
[1751022176299,5.0427897,2448.2,2448.1,0.81668]
[1751022176504,4.2261397,2448.2,2448.1,0.81668]
[1751022176692,3.2078,2448.2,2448.1,0.81668]
[1751022177801,3.2078,2448.5,2448.4,0.81658]
[1751022178107,4.22650174,2448.5,2448.4,0.81658]
[1751022178299,4.22650174,2448.5,2448.3,6.45338823]
[1751022178500,4.02435,2448.5,2448.3,6.45338823]
[1751022179703,4.02435,2448.5,2448.3,0.81659]
[1751022180104,3.2078,2448.5,2448.4,0.81658]
[1751022180501,3.2078,2448.5,2448.4,6.45337823]
[1751022182506,1.50416,2448.8,2448.6,0.81648]
[1751022183506,0.81649,2448.7,2448.5,0.81652]
[1751022184005,2.22969,2448.7,2448.5,0.81652]
[1751022184502,0.81647,2448.8,2448.6,0.81651]
[1751022184718,0.81641,2448.9,2448.8,0.81643]
[1751022185001,4.0242,2449.0,2448.8,0.81643]
[1751022185902,0.81641,2448.9,2448.8,0.81643]
[1751022186202,0.81638,2449.0,2448.8,0.81642]
[1751022186406,0.7016,2449.0,2448.9,0.81641]
[1751022186606,0.81633,2449.2,2448.8,6.381]
[1751022186810,0.81631,2449.2,2449.0,0.81636]
[1751022187011,0.81631,2449.2,2449.1,0.81635]
[1751022187198,0.81636,2449.1,2448.9,0.81638]
[1751022187605,0.81636,2449.1,2449.0,0.81638]
[1751022188509,2.13443,2449.2,2449.0,0.81638]
[1751022188810,2.13441,2449.2,2449.1,0.81635]
[1751022189501,1.3181,2449.2,2449.1,0.81635]
[1751022190608,0.7016,2449.3,2449.2,0.81631]
[1751022191003,2.1237,2449.3,2449.2,0.81631]
[1751022192012,3.2078,2449.6,2449.0,6.34819823]
[1751022192013,3.2078,2449.6,2449.1,8.42086]
[1751022192211,3.2078,2449.6,2449.5,0.81621]
[1751022193112,4.02398,2449.6,2449.5,0.81621]
[1751022193605,4.5548,2449.6,2449.5,0.81621]
[1751022193815,0.6937,2449.7,2449.6,0.81618]
[1751022194307,0.6656,2449.8,2449.7,0.81615]
[1751022195312,0.7165,2449.9,2449.8,0.81611]
[1751022201412,0.7165,2449.9,2449.7,9.31088465]
[1751022201413,0.81611,2449.8,2449.7,6.381]
[1751022201905,2.26881,2449.8,2449.7,6.381]
[1751022202614,1.4527,2449.8,2449.7,7.19715]
[1751022202807,1.4527,2449.8,2449.7,10.12903465]
[1751022203307,0.7165,2449.9,2449.8,0.81611]
[1751022206811,0.81611,2449.8,2449.7,10.12801465]
[1751022207005,2.17781,2449.8,2449.7,10.12801465]
[1751022207413,2.17781,2449.8,2449.7,7.19613]
[1751022207921,0.81625,2449.4,2449.3,3.83]
[1751022208718,0.81625,2449.4,2449.3,4.64628]
[1751022208917,1.51743,2449.5,2449.4,0.81625]
[1751022209113,2.93933,2449.5,2449.4,0.81625]
[1751022209320,0.81625,2449.4,2449.3,7.57815465]
[1751022209612,2.23815,2449.4,2449.3,7.57815465]
[1751022210017,1.4219,2449.4,2449.3,7.57815465]
[1751022212514,1.4219,2449.4,2449.3,4.64627]
[1751022212716,1.4219,2449.4,2449.3,7.57815465]
[1751022212911,1.4219,2449.4,2449.3,3.74815465]
[1751022213218,0.7,2449.6,2449.5,0.81621]
[1751022213416,0.7,2449.6,2449.5,3.74809465]